bitfinex-derivatives/quotes_ETHF0:USTF0_20250224
["timestamp","ask_amount","ask_price","bid_price","bid_amount"]
[1740357048824,0.70647,2830.9,2830.7,0.7065]
[1740357049020,0.70647,2830.9,2830.4,0.5157]
[1740357049328,0.70648,2830.9,2830.4,0.5157]
[1740357049522,0.5252,2830.8,2830.6,0.70654]
[1740357049723,2.506,2830.7,2830.4,0.5157]
[1740357050022,2.506,2830.7,2830.5,0.70655]
[1740357050328,2.506,2830.7,2830.3,3.2078]
[1740357050524,0.70649,2830.9,2830.5,0.70655]
[1740357050726,2.506,2830.8,2830.7,0.70652]
[1740357052943,2.506,2831.0,2830.9,0.70647]
[1740357053141,2.506,2831.0,2830.2,4.2973]
[1740357053322,2.506,2831.0,2830.4,0.70659]
[1740357053323,0.70654,2830.7,2830.4,0.70659]
[1740357053528,2.506,2831.0,2830.2,4.2973]
[1740357053927,0.70653,2830.7,2830.4,0.70659]
[1740357054233,0.70658,2830.5,2830.2,4.44502]
[1740357054438,0.559,2830.4,2830.3,0.70662]
[1740357054838,0.559,2830.4,2830.2,0.5306]
[1740357054839,1.26561,2830.4,2830.2,0.5306]
[1740357055035,0.559,2830.4,2830.2,0.5306]
[1740357055333,0.559,2830.4,2830.3,0.70662]
[1740357055535,0.559,2830.4,2830.0,0.5344]
[1740357055840,0.559,2830.4,2830.2,0.70663]
[1740357055841,0.8357237,2830.4,2830.2,0.70663]
[1740357056134,0.70663,2830.3,2830.0,1.24108]
[1740357056331,2.506,2830.7,2830.6,0.70654]
[1740357056733,2.506,2830.7,2830.0,0.5344]
[1740357057038,0.70661,2830.4,2830.1,0.70666]
[1740357057341,4.297,2830.6,2830.0,0.5344]
[1740357057529,4.297,2830.6,2830.0,1.24107]
[1740357057734,4.297,2830.6,2830.0,0.5344]
[1740357058332,4.297,2830.6,2830.0,1.24109]
[1740357058532,4.297,2830.6,2830.0,0.5344]
[1740357058734,0.70658,2830.5,2830.2,0.70664]
[1740357059734,5.00355,2830.6,2830.3,0.70662]
[1740357059932,0.70658,2830.5,2830.2,0.70663]
[1740357060342,0.70658,2830.5,2830.1,0.70665]
[1740357060534,0.5406,2830.4,2830.0,0.5344]
[1740357060729,0.5511,2830.6,2830.5,0.70657]
[1740357061031,0.70657,2830.5,2830.0,0.5344]
[1740357061232,1.23277,2830.5,2830.0,0.5344]
[1740357061632,0.5262,2830.5,2830.0,0.5344]
[1740357061826,0.70657,2830.5,2830.2,0.70662]
[1740357062239,0.5511,2830.6,2830.0,0.5344]
[1740357062440,0.5511,2830.6,2830.3,0.70661]
[1740357062636,1.25765,2830.6,2830.3,0.70661]
[1740357063236,1.25765,2830.6,2830.2,0.70662]
[1740357063442,1.25765,2830.6,2830.3,0.70661]
[1740357063836,0.5511,2830.6,2830.0,0.5344]
[1740357064037,0.5511,2830.6,2830.5,0.70657]
[1740357064539,3.5963,2830.9,2830.8,0.70649]
[1740357064746,3.5963,2830.9,2830.7,0.7065]
[1740357064942,3.5963,2830.9,2830.8,0.70649]
[1740357065342,3.5963,2830.9,2830.3,0.5122]
[1740357065343,4.30277,2830.9,2830.7,0.7065]
[1740357065541,4.30277,2830.9,2830.3,0.5122]
[1740357065740,3.5963,2830.9,2830.3,0.5122]
[1740357065936,3.5963,2830.9,2830.3,0.70661]
[1740357065937,0.70657,2830.6,2830.3,0.70661]
[1740357066136,0.70656,2830.6,2830.3,0.70661]
[1740357067144,0.70656,2830.6,2830.0,1.0459]
[1740357067446,3.91433,2830.7,2830.4,0.70658]
[1740357067644,3.91433,2830.7,2830.0,1.0459]
[1740357067645,3.2078,2830.7,2830.0,1.0459]
[1740357067850,0.70655,2830.6,2830.3,0.70661]
[1740357068146,1.26675,2830.6,2830.3,0.70661]
[1740357068338,0.5602,2830.6,2830.0,1.0459]
[1740357068541,0.70657,2830.5,2830.3,0.70662]
[1740357068741,0.5602,2830.6,2830.3,0.70662]
[1740357069044,3.773,2830.4,2829.9,3.2078]
[1740357069241,0.70669,2830.0,2829.9,3.2078]
[1740357069447,2.504,2830.1,2829.9,3.2078]
[1740357069950,2.504,2830.1,2830.0,0.70669]
[1740357070747,3.773,2830.4,2830.0,0.70669]
[1740357070748,0.5652,2830.4,2830.0,0.5221]
[1740357071051,0.5652,2830.4,2830.2,0.70663]
[1740357071248,0.5652,2830.4,2830.0,0.5221]
[1740357071249,0.5652,2830.4,2830.3,0.70662]
[1740357073256,2.504,2830.5,2830.0,0.5221]
[1740357073454,2.504,2830.5,2830.4,0.70659]
[1740357073949,0.5281,2830.9,2830.3,0.5383]
[1740357074152,0.5281,2830.9,2830.7,0.70651]
[1740357074349,0.5281,2830.9,2830.3,0.5383]
[1740357074546,0.70659,2830.4,2830.3,0.5383]
[1740357074746,0.70654,2830.6,2830.3,1.24491]
[1740357074951,3.0474,2830.7,2830.3,0.5383]
[1740357075153,0.70661,2830.4,2830.1,0.70667]
[1740357075460,3.91438,2830.5,2830.0,1.0509]
[1740357075657,3.2078,2830.5,2830.4,0.70659]
[1740357075845,3.2078,2830.5,2830.0,1.0509]
[1740357076153,1.24995,2830.6,2830.3,0.7066]
[1740357076653,0.70659,2830.5,2830.2,0.70664]
[1740357076849,0.70669,2830.0,2829.9,3.2078]
[1740357077055,3.2078,2830.1,2829.5,4.2986]
[1740357077241,1.25011,2830.0,2829.6,0.70678]
[1740357077446,3.2078,2829.8,2829.2,0.5481]
[1740357077644,5.7118,2829.8,2829.2,1.78999]
[1740357077850,0.70681,2829.6,2829.2,1.24189]
[1740357078052,3.2078,2829.5,2828.7,3.2078]
[1740357078256,2.504,2829.4,2828.7,3.2078]
[1740357078457,3.2078,2828.9,2827.6,3.2078]
[1740357078646,3.0609,2828.8,2828.2,3.2078]
[1740357078847,3.0609,2828.8,2828.3,0.535]
[1740357079149,3.0609,2828.8,2828.3,1.24211]
[1740357079652,0.70703,2828.7,2828.3,0.535]
[1740357079855,3.0609,2828.8,2828.3,0.535]
[1740357080048,3.0609,2828.8,2828.5,0.70706]
[1740357080250,3.0609,2828.8,2828.5,0.70707]
[1740357080551,3.0609,2828.8,2828.3,0.535]
[1740357080747,3.0609,2828.8,2828.6,0.70704]
[1740357081158,3.0609,2828.8,2827.9,3.2078]
[1740357081452,3.2078,2828.6,2827.8,0.5663]
[1740357081650,3.2078,2828.6,2827.9,3.2078]
[1740357081951,3.2078,2828.6,2828.4,0.70708]
[1740357082155,3.2078,2828.6,2827.9,3.2078]
[1740357082356,3.91486,2828.6,2828.1,0.70716]
[1740357082552,3.91486,2828.6,2827.9,3.2078]
[1740357082553,3.2078,2828.6,2827.9,3.2078]
[1740357083260,3.2078,2828.6,2827.8,0.5663]
[1740357083261,3.91493,2828.3,2827.8,0.5663]
[1740357083455,2.504,2828.2,2827.8,0.5663]
[1740357084054,2.504,2828.2,2827.9,0.7072]
[1740357084253,2.504,2828.2,2827.6,3.2078]
[1740357084453,3.21116,2828.2,2827.7,0.70725]
[1740357084654,3.2078,2827.9,2827.8,0.70724]
[1740357084852,0.5163,2828.1,2828.0,0.70719]
[1740357085048,0.5163,2828.1,2827.5,4.2468]
[1740357085258,0.5163,2828.1,2828.0,0.70719]
[1740357085461,0.5163,2828.1,2827.9,0.7072]
[1740357085961,0.5163,2828.1,2828.0,0.70719]
[1740357087754,0.5163,2828.1,2827.5,4.2468]
[1740357087961,1.22348,2828.1,2827.5,3.2078]
[1740357088161,0.70721,2828.0,2827.7,0.70725]
[1740357088357,0.5163,2828.1,2827.5,3.2078]
[1740357088563,1.22349,2828.1,2827.7,0.70726]
[1740357088766,0.5163,2828.1,2827.4,0.01196175]
[1740357088962,3.2078,2827.9,2827.4,0.01196175]
[1740357089165,2.504,2827.8,2827.7,0.70727]
[1740357089763,2.504,2827.8,2827.4,0.01196175]
[1740357090266,2.504,2827.8,2827.6,0.70728]
[1740357090467,3.21125,2827.8,2827.5,0.70731]
[1740357090661,2.504,2827.8,2827.5,0.70731]
[1740357091061,2.504,2827.8,2827.4,0.01196175]
[1740357091062,2.504,2827.8,2827.7,0.70727]
[1740357091257,3.2078,2827.9,2827.8,0.70724]
[1740357091457,5.7118,2827.9,2827.8,0.70724]
[1740357093063,3.2078,2827.9,2827.8,0.70724]
[1740357093263,2.504,2828.0,2827.9,0.70722]
[1740357093577,2.504,2828.0,2827.9,1.25102]
[1740357097760,2.504,2828.0,2827.7,0.00593396]
[1740357097977,3.21121,2828.0,2827.7,0.71318396]
[1740357098266,3.21121,2828.0,2827.8,0.70724]
[1740357098566,2.504,2828.0,2827.7,0.00593396]
[1740357098766,3.2112,2828.0,2827.8,0.70723]
[1740357098972,2.504,2828.0,2827.8,0.70723]
[1740357100467,2.504,2828.0,2827.9,0.70722]
[1740357101177,0.00529904,2828.3,2827.9,3.2078]
[1740357101670,3.91496,2828.2,2827.9,0.70721]
[1740357101864,0.5114,2828.1,2827.9,0.70721]
[1740357102171,1.21857,2828.1,2827.8,0.70723]
[1740357102373,1.21857,2828.1,2827.7,0.00593396]
[1740357102374,0.5114,2828.1,2827.9,0.70722]
[1740357103273,0.5114,2828.1,2827.7,0.00593396]
[1740357103474,0.5114,2828.1,2827.9,0.7072]
[1740357103875,0.5114,2828.1,2828.0,0.70719]
[1740357105275,0.5114,2828.1,2827.8,0.70722]
[1740357105675,0.5114,2828.1,2827.7,0.00593396]
[1740357106073,0.5114,2828.1,2828.0,0.70719]
[1740357106574,0.00529904,2828.3,2827.7,0.00593396]
[1740357106779,0.00529904,2828.3,2828.2,0.70714]
[1740357109380,0.5632,2829.1,2829.0,0.70694]
[1740357109577,0.81399275,2829.3,2828.7,3.2078]
[1740357109883,0.81399275,2829.3,2828.5,1.76763]
[1740357109884,0.5378,2829.3,2829.2,0.70689]
[1740357110483,1.24468,2829.3,2829.0,0.00529904]
[1740357110971,0.5378,2829.3,2829.1,0.70691]
[1740357111371,0.5378,2829.3,2829.2,0.70689]
[1740357111776,0.52429904,2829.5,2829.0,0.00529904]
[1740357111977,0.70686,2829.4,2829.0,0.00529904]
[1740357112383,4.26899904,2829.5,2829.0,0.71222904]
[1740357112575,0.7069,2829.2,2829.0,0.71222904]
[1740357112781,3.2078,2829.2,2829.0,0.00529904]
[1740357113084,0.70686,2829.4,2829.1,0.70692]
[1740357113280,1.06119904,2829.5,2829.0,0.00529904]
[1740357113481,0.54219904,2829.5,2829.4,0.70684]
[1740357113875,0.00529904,2829.5,2829.4,0.70684]
[1740357114589,0.00529904,2829.5,2829.4,3.91464]
[1740357114888,2.502,2830.4,2830.3,0.70662]
[1740357115088,5.7098,2830.4,2829.6,1.76694]
[1740357115388,3.2086,2830.4,2830.1,0.70666]
[1740357115585,0.70663,2830.3,2830.0,0.70668]
[1740357115884,0.5167,2830.3,2829.7,0.5643]
[1740357116080,0.5167,2830.3,2829.5,0.529]
[1740357116480,0.70667,2830.1,2829.8,0.70673]
[1740357116683,3.2078,2830.0,2829.6,0.70678]
[1740357116884,1.22673,2829.9,2829.6,0.70678]
[1740357117080,0.52,2829.9,2829.6,0.70678]
[1740357117681,0.70676,2829.8,2829.4,0.70683]
[1740357117880,1.077,2829.9,2829.4,0.70683]
[1740357118078,0.70676,2829.8,2829.5,0.70681]
[1740357118283,1.077,2829.9,2829.5,0.70681]
[1740357118491,1.78373,2829.9,2829.5,0.70681]
[1740357118699,3.2078,2829.7,2829.3,1.0881]
[1740357118885,0.7068,2829.6,2829.3,0.5238]
[1740357119086,3.91458,2829.7,2829.3,1.23066]
[1740357119482,3.2078,2829.7,2829.3,0.5238]
[1740357119685,3.91459,2829.7,2829.3,1.23065]
[1740357120092,3.2078,2829.7,2829.4,0.70683]
[1740357120288,0.7068,2829.6,2829.3,1.23066]
[1740357120499,4.42989,2829.7,2829.3,1.23066]
[1740357121181,4.42989,2829.7,2829.0,0.55439904]
[1740357121182,0.70689,2829.3,2829.0,0.00529904]
[1740357121393,2.501,2829.6,2829.2,0.70689]
[1740357121394,3.2078,2829.4,2829.2,0.70689]
[1740357121591,3.2078,2829.4,2829.0,0.00529904]
[1740357121793,0.5341,2829.3,2829.2,0.70688]
[1740357122889,2.501,2829.6,2829.0,0.00529904]
[1740357123096,2.501,2829.6,2829.5,0.70682]
[1740357123292,2.501,2829.6,2829.1,4.97511]
[1740357123293,2.501,2829.6,2829.1,0.5484]
[1740357123486,3.20781,2829.6,2829.3,0.70687]
[1740357124187,2.501,2829.6,2829.3,0.70687]
[1740357124490,0.70686,2829.4,2829.1,0.70691]
[1740357124796,2.501,2829.6,2829.0,0.00529904]
[1740357124993,0.70686,2829.4,2829.1,0.70691]
[1740357125195,2.501,2829.6,2829.0,0.00529904]
[1740357125388,0.5526,2829.3,2829.2,0.70689]
[1740357125589,0.5526,2829.3,2829.1,0.70691]
[1740357125790,1.25948,2829.3,2829.0,0.71222904]
[1740357126091,0.5526,2829.3,2829.1,0.70692]
[1740357126287,0.5526,2829.3,2829.0,0.00529904]
[1740357126486,3.20689,2829.2,2829.0,0.00529904]
[1740357126691,2.5,2829.2,2829.0,0.71223904]
[1740357126892,2.5,2829.2,2829.1,0.70692]
[1740357127393,2.5,2829.6,2829.0,0.00529904]
[1740357127598,3.74001,2829.6,2829.0,0.00529904]
[1740357127895,3.74001,2829.6,2829.3,0.70685]
[1740357128096,3.0332,2829.6,2829.0,0.00529904]
[1740357128293,3.0332,2829.6,2829.5,0.70682]
[1740357128497,0.5332,2829.6,2829.5,0.70682]
[1740357128897,3.2078,2830.0,2829.9,0.70672]
[1740357129094,2.5,2830.0,2829.9,0.70672]
[1740357129295,3.741,2830.3,2830.2,0.70664]
[1740357129799,0.5332,2830.3,2830.2,0.70664]
[1740357130002,3.2078,2831.6,2830.1,3.2078]
[1740357130193,3.032,2831.5,2830.6,3.2078]
[1740357130498,3.032,2831.5,2830.3,3.2078]
[1740357130499,3.2078,2831.0,2830.3,3.2078]
[1740357130698,4.25428,2830.9,2830.5,0.70657]
[1740357131086,3.5478,2830.9,2830.2,1.0853]
[1740357131286,0.70657,2830.5,2830.4,0.00529904]
[1740357131489,2.5,2830.5,2830.4,0.71188904]
[1740357131691,1.0478,2830.9,2830.4,0.71188904]
[1740357131692,1.0478,2830.9,2830.4,0.00529904]
[1740357131895,1.0478,2830.9,2830.4,3.21309904]
[1740357132094,3.5468,2830.9,2830.4,3.21309904]
[1740357132298,3.5468,2830.9,2830.8,0.70649]
[1740357132491,0.5158,2830.9,2830.4,3.21309904]
[1740357132692,0.00529904,2831.0,2830.7,3.2078]
[1740357132903,0.00529904,2831.0,2830.9,0.70647]
[1740357136894,0.00529904,2831.0,2830.8,0.70649]
[1740357137204,0.00529904,2831.0,2830.4,3.21309904]
[1740357137400,0.70657,2830.6,2830.4,3.21309904]
[1740357137601,3.04739904,2831.0,2830.4,3.21309904]
[1740357138303,3.91437,2830.5,2830.4,0.00529904]
[1740357138504,6.41237,2830.5,2830.4,0.00529904]
[1740357138806,6.41237,2830.5,2829.6,3.2078]
[1740357138807,5.7058,2830.5,2829.6,3.2078]
[1740357138997,0.70676,2829.8,2829.4,0.70684]
[1740357139909,0.70682,2829.6,2829.3,3.21309904]
[1740357140209,0.70675,2829.8,2829.4,0.70684]
[1740357140399,0.7068,2829.6,2829.3,3.21309904]
[1740357140801,0.70683,2829.5,2829.3,3.21309904]
[1740357141000,0.70684,2829.4,2829.3,3.21309904]
[1740357141399,0.70684,2829.4,2829.3,0.00529904]
[1740357142610,4.20062944,2829.4,2829.3,0.00529904]
[1740357143110,3.49378944,2829.4,2828.7,3.2078]
[1740357143301,0.70701,2828.8,2828.5,0.5444]
[1740357143502,0.70701,2828.8,2828.3,3.91491]
[1740357143503,2.499,2828.8,2828.3,3.2078]
[1740357143913,3.20601,2828.8,2828.3,3.91491]
[1740357144100,2.499,2828.8,2828.3,3.2078]
[1740357144299,2.50429904,2828.8,2828.5,0.70707]
[1740357144607,0.00529904,2828.8,2828.7,3.91482]
[1740357145404,2.498,2829.4,2828.7,9.91482]
[1740357145610,2.498,2829.7,2829.0,3.2078]
[1740357145999,3.2078,2829.5,2828.7,3.2078]
[1740357146204,0.70696,2829.0,2828.6,0.70703]
[1740357146504,0.70696,2829.0,2828.5,44.71485]
[1740357146704,0.70696,2829.0,2828.6,0.70703]
[1740357147704,0.70696,2829.0,2828.7,0.70702]
[1740357148108,0.00529904,2829.1,2828.5,44.0078]
[1740357148308,0.71223904,2829.1,2828.6,0.70704]
[1740357149207,0.00529904,2829.1,2828.5,3.2078]
[1740357149407,0.70698,2828.9,2828.5,0.70705]
[1740357150313,0.70698,2828.9,2828.6,0.70704]
[1740357150514,0.00529904,2829.1,2828.4,0.5144]
[1740357150808,0.70701,2828.8,2828.4,1.22148]
[1740357151010,0.70704,2828.7,2828.4,0.5144]
[1740357151409,0.70706,2828.6,2828.3,0.00529904]
[1740357152206,0.5587,2828.7,2828.3,0.00529904]
[1740357152411,0.70706,2828.6,2828.3,0.00529904]
[1740357152611,0.5587,2828.7,2828.3,0.00529904]
[1740357152810,0.70708,2828.5,2828.3,0.00529904]
[1740357153003,0.5587,2828.7,2828.3,0.00529904]
[1740357153408,0.70709,2828.4,2828.3,0.00529904]
[1740357153608,3.20509,2828.4,2828.3,0.00529904]
[1740357155013,3.48401187,2828.4,2828.3,0.00529904]
[1740357155615,1.25205,2828.6,2828.3,0.00529904]
[1740357155812,2.499,2829.4,2828.4,3.2078]
[1740357156012,0.70707,2828.5,2828.3,0.52869904]
[1740357156215,0.70705,2828.6,2828.3,1.23581904]
[1740357156415,2.499,2828.9,2828.3,0.52869904]
[1740357156711,2.499,2828.9,2828.8,0.70699]
[1740357156915,2.499,2828.9,2828.4,3.2078]
[1740357157419,2.499,2828.9,2828.8,0.70699]
[1740357158413,19.607,2829.0,2828.4,3.2078]
[1740357158622,19.607,2829.0,2828.8,0.70698]
[1740357159223,19.607,2829.0,2828.4,3.7335]
[1740357159720,20.31395,2829.0,2828.8,0.70699]
[1740357159921,19.607,2829.0,2828.4,3.7335]
[1740357160113,20.31395,2829.0,2828.8,0.70699]
[1740357160311,19.607,2829.0,2828.8,0.70699]
[1740357160721,19.607,2829.0,2828.9,0.70697]
[1740357161221,19.607,2829.0,2828.8,0.70699]
[1740357161722,20.31395,2829.0,2828.8,0.70699]
[1740357162419,19.607,2829.0,2828.7,3.2078]
[1740357162623,19.607,2829.0,2828.9,0.70697]
[1740357168418,0.00529904,2829.1,2829.0,0.70694]
[1740357171629,0.00059088,2829.1,2829.0,3.91474]
[1740357172627,0.00059088,2829.1,2829.0,0.70694]
[1740357174733,0.00059088,2829.1,2828.6,3.2078]
[1740357174931,0.70701,2828.8,2828.6,3.2078]
[1740357175231,0.707,2828.8,2828.6,3.2078]
[1740357175728,0.70701,2828.8,2828.5,0.70706]
[1740357176029,0.526,2828.7,2828.5,0.70706]
[1740357176329,0.526,2828.7,2828.3,3.73649904]
[1740357176330,1.23302,2828.7,2828.4,0.70708]
[1740357176727,0.526,2828.7,2828.5,0.70707]
[1740357176934,0.526,2828.7,2828.4,0.70708]
[1740357177132,1.23302,2828.7,2828.4,0.70708]
[1740357177632,1.23302,2828.7,2828.3,0.52869904]
[1740357177633,0.526,2828.7,2828.3,0.52869904]
[1740357177934,1.23303,2828.7,2828.3,0.71239904]
[1740357178135,1.23303,2828.7,2828.4,0.70709]
[1740357178537,0.526,2828.7,2828.3,0.00529904]
[1740357178733,0.526,2828.7,2828.3,0.71240904]
[1740357179035,1.23304,2828.7,2828.4,0.70709]
[1740357179533,0.70705,2828.6,2828.3,0.71239904]
[1740357180235,0.526,2828.7,2828.3,0.00529904]
[1740357180429,0.526,2828.7,2828.3,0.71239904]
[1740357180630,0.70705,2828.6,2828.3,0.71239904]
[1740357180835,0.526,2828.7,2828.3,0.00529904]
[1740357181031,0.70709,2828.4,2828.3,0.00529904]
[1740357181226,3.20409,2828.4,2828.3,0.00529904]
[1740357181636,3.20409,2828.4,2827.6,3.2078]
[1740357181637,5.7048,2828.4,2827.6,3.2078]
[1740357181831,3.2078,2827.8,2827.5,0.5597]
[1740357182032,3.72588,2827.7,2827.4,0.01196175]
[1740357182336,4.29128,2827.7,2827.4,0.01196175]
[1740357182536,0.7073,2827.6,2827.4,0.01196175]
[1740357182731,3.91512,2827.5,2827.4,0.01196175]
[1740357183033,0.70736,2827.4,2827.0,0.70744]
[1740357183229,3.584,2827.7,2826.2,1.76908]
[1740357183230,3.2078,2827.1,2826.2,0.5597]
[1740357183430,3.0186,2827.0,2826.0,3.2078]
[1740357183635,3.2078,2826.8,2825.8,0.5579]
[1740357183936,3.2078,2826.5,2825.9,40.8]
[1740357184132,3.2078,2826.5,2826.0,0.00477096]
[1740357184335,2.497,2826.4,2826.0,0.00477096]
[1740357184541,0.70766,2826.2,2826.0,0.00477096]
[1740357184742,0.70763,2826.3,2826.0,0.00477096]
[1740357185138,3.20461,2826.4,2826.0,0.00477096]
[1740357185632,2.497,2826.4,2826.0,0.00477096]
[1740357186533,0.70765,2826.2,2826.0,0.00477096]
[1740357186729,2.497,2826.4,2826.0,0.00477096]
[1740357186933,3.91547,2826.1,2826.0,0.00477096]
[1740357188937,3.2078,2826.1,2826.0,0.00477096]
[1740357189239,3.2078,2826.1,2825.2,3.2078]
[1740357189447,0.5525,2826.0,2825.2,3.2078]
[1740357189640,3.2078,2826.1,2825.3,40.8]
[1740357189837,2.498,2826.1,2825.5,3.2078]
[1740357190035,2.498,2826.1,2825.9,0.70771]
[1740357190234,2.498,2826.1,2826.0,0.70769]
[1740357190438,2.498,2826.1,2825.5,3.2078]
[1740357190637,2.498,2826.1,2825.9,0.70771]
[1740357190940,2.498,2826.1,2825.5,3.7561]
[1740357190941,2.498,2826.3,2826.1,0.70766]
[1740357191242,0.7076,2826.4,2826.1,0.70766]
[1740357191546,0.70778,2825.7,2825.3,0.70785]
[1740357191743,3.2078,2825.9,2825.2,3.2078]
[1740357192042,3.2078,2825.8,2825.2,3.2078]
[1740357192244,0.70776,2825.8,2825.4,0.70783]
[1740357192540,0.7077,2826.0,2825.2,3.2078]
[1740357192844,3.7579,2826.3,2825.5,3.2078]
[1740357192845,2.498,2826.2,2825.5,3.2078]
[1740357193045,3.20565,2826.2,2825.9,0.70771]
[1740357193241,3.2078,2826.3,2825.5,3.2078]
[1740357193549,3.2078,2826.3,2825.8,0.70773]
[1740357193550,0.70767,2826.1,2825.8,0.70773]
[1740357193847,2.498,2826.2,2825.6,40.8]
[1740357194146,0.70768,2826.1,2825.6,40.8]
[1740357194346,2.498,2826.2,2825.7,0.5247]
[1740357194643,2.498,2826.2,2825.4,0.5169]
[1740357194644,3.2078,2826.0,2825.4,0.5169]
[1740357194842,3.2078,2826.0,2825.2,6.1618]
[1740357195045,3.2078,2826.0,2825.3,0.70787]
[1740357195247,3.2078,2825.7,2825.3,40.8]
[1740357195446,3.20576,2825.8,2825.4,0.70784]
[1740357196041,2.498,2825.8,2825.2,2.954]
[1740357196243,0.70777,2825.7,2825.3,0.70786]
[1740357196449,0.70779,2825.7,2825.3,0.70786]
[1740357196844,2.498,2825.8,2825.2,2.954]
[1740357197044,2.498,2825.8,2825.2,6.1618]
[1740357197446,0.70778,2825.7,2825.2,6.1618]
[1740357197740,2.498,2825.8,2825.5,0.70782]
[1740357197946,2.498,2825.8,2825.2,6.1618]
[1740357198145,2.498,2825.8,2825.7,0.70777]
[1740357198341,2.498,2825.8,2825.2,3.2078]
[1740357198554,2.498,2825.8,2825.6,0.70778]
[1740357198851,2.498,2825.8,2825.2,3.2078]
[1740357199046,3.2078,2825.7,2825.2,3.2078]
[1740357199453,3.2078,2825.4,2825.0,0.5247]
[1740357199752,3.91567,2825.4,2825.0,1.23263]
[1740357199948,3.91567,2825.4,2825.0,0.5247]
[1740357200250,3.2078,2825.4,2825.0,0.5247]
[1740357200455,3.2078,2825.4,2825.3,0.70787]
[1740357200848,5.7058,2825.4,2825.3,0.70787]
[1740357201345,5.7058,2825.4,2825.0,0.5247]
[1740357201546,0.70788,2825.3,2825.0,1.23263]
[1740357201952,6.41366,2825.4,2825.1,0.70792]
[1740357202650,5.7058,2825.4,2825.0,0.5247]
[1740357203448,5.7058,2825.4,2825.3,0.70787]
[1740357204248,6.41366,2825.4,2825.2,0.70789]
[1740357204459,6.41365,2825.4,2825.2,0.70789]
[1740357204653,6.41365,2825.4,2825.0,0.5247]
[1740357204654,0.70788,2825.3,2825.1,0.70791]
[1740357204954,5.7058,2825.4,2824.8,3.2078]
[1740357205155,0.70796,2825.0,2824.5,3.7661]
[1740357205359,2.498,2825.0,2824.5,0.5583]
[1740357205658,0.70803,2824.7,2824.5,0.5583]
[1740357205858,0.70801,2824.8,2824.5,1.26637]
[1740357206258,0.70798,2824.9,2824.5,0.5583]
[1740357206458,0.70798,2824.9,2824.6,0.70804]
[1740357206761,3.21126851,2825.0,2824.7,0.70801]
[1740357207159,2.50330851,2825.0,2824.5,0.5583]
[1740357207558,3.2078,2824.8,2824.5,0.5583]
[1740357207755,0.70804,2824.7,2824.2,3.2078]
[1740357207959,2.498,2824.6,2824.2,44.0078]
[1740357208256,2.498,2824.6,2824.4,0.70809]
[1740357208561,3.2078,2824.5,2823.9,0.5583]
[1740357208763,0.70817,2824.1,2823.9,0.5583]
[1740357209063,2.498,2824.0,2823.7,0.70826]
[1740357209260,2.498,2824.0,2823.8,0.70823]
[1740357209661,2.498,2824.0,2823.9,0.70822]
[1740357209859,2.498,2824.0,2823.8,0.70823]
[1740357210064,2.498,2824.0,2823.5,0.53953207]
[1740357210582,2.498,2824.0,2823.9,0.70822]
[1740357213465,2.498,2824.0,2823.9,41.50822]
[1740357213964,23.37,2824.5,2823.9,40.8]
[1740357214167,23.37,2824.5,2824.4,0.7081]
[1740357214168,22.129,2824.5,2824.4,0.7081]
[1740357214669,22.129,2824.5,2824.0,0.5563]
[1740357214864,22.129,2824.5,2824.4,0.7081]
[1740357215758,22.129,2824.5,2824.3,0.70812]
[1740357215966,22.129,2824.5,2824.4,0.7081]
[1740357216166,22.129,2824.5,2824.3,0.70811]
[1740357216466,22.129,2824.5,2824.4,0.7081]
[1740357216673,0.70812,2824.3,2823.9,44.0078]
[1740357216869,0.70812,2824.3,2824.0,0.7082]
[1740357217064,25.3368,2824.5,2823.9,3.91602]
[1740357217065,0.5257,2824.4,2823.9,3.91602]
[1740357217266,0.5257,2824.4,2823.9,3.2078]
[1740357217461,0.70819,2824.1,2823.9,3.2078]
[1740357217768,2.498,2824.1,2823.9,3.2078]
[1740357217975,2.498,2824.1,2824.0,0.7082]
[1740357219766,3.20618,2824.1,2823.9,0.70822]
[1740357220174,2.498,2824.1,2824.0,0.7082]
[1740357220769,0.5257,2824.4,2823.6,3.2078]
[1740357220967,22.129,2824.5,2823.9,3.2078]
[1740357221165,22.129,2824.5,2824.4,0.7081]
[1740357222369,22.129,2824.5,2823.9,3.2078]
[1740357222575,22.129,2824.5,2823.5,3.74733207]
[1740357222761,0.70814,2824.3,2823.9,0.7082]
[1740357222967,0.70817,2824.2,2823.8,0.70824]
[1740357223462,22.129,2824.5,2824.0,0.70819]
[1740357223770,0.70813,2824.3,2824.0,0.70818]
[1740357223968,22.129,2824.5,2823.5,4.28243207]
[1740357224166,0.70813,2824.3,2824.0,0.70818]
[1740357224471,0.70812,2824.3,2824.1,0.70816]
[1740357224662,0.70812,2824.3,2824.0,0.70818]
[1740357225469,3.2078,2824.3,2823.7,0.70825]
[1740357225680,19.631,2824.5,2823.7,3.2078]
[1740357225976,0.70813,2824.3,2824.0,0.70818]
[1740357226161,0.5275,2824.4,2823.7,3.2078]
[1740357226365,2.498,2824.3,2824.1,0.70817]
[1740357226574,2.498,2824.3,2824.2,0.70815]
[1740357226777,2.498,2824.3,2823.7,3.2078]
[1740357226975,2.498,2824.3,2824.0,0.70818]
[1740357227175,2.498,2824.3,2823.7,3.2078]